bitfinex-derivatives/quotes_ETHF0:USTF0_20250403
["timestamp","ask_amount","ask_price","bid_price","bid_amount"]
[1743688022568,1.12014,1785.8,1785.7,3.2078]
[1743688022764,1.12039,1785.4,1785.3,0.00840735]
[1743688023067,1.12064,1785.0,1784.9,1.8523]
[1743688023270,1.12064,1785.0,1784.7,1.1208]
[1743688023568,5.02,1785.0,1784.8,1.8515]
[1743688023768,5.02,1785.0,1784.9,1.12071]
[1743688023972,6.9063,1785.3,1785.1,1.12056]
[1743688024165,1.12041,1785.4,1785.2,1.8515]
[1743688024372,6.91470735,1785.5,1785.2,1.8515]
[1743688024571,1.12046,1785.3,1785.2,1.8515]
[1743688024875,6.91470735,1785.5,1784.9,5.0593]
[1743688025078,6.91470735,1785.5,1784.9,7.86105]
[1743688025372,5.02840735,1785.5,1785.2,3.2078]
[1743688025574,8.2278,1786.0,1785.4,3.2078]
[1743688025772,2.79975,1786.2,1785.2,2.5]
[1743688025773,1.11993,1786.2,1785.9,1.12008]
[1743688025964,5.02,1786.4,1785.9,1.12008]
[1743688025965,7.81949,1786.4,1785.9,3.2078]
[1743688026164,2.0563,1786.7,1786.2,1.11989]
[1743688026364,1.11977,1786.4,1786.3,2.0282]
[1743688027085,1.11983,1786.3,1786.2,0.00840735]
[1743688027372,2.79999,1786.1,1785.5,3.2078]
[1743688027570,3.2078,1785.9,1785.3,5.2475]
[1743688027773,11.74268,1786.0,1785.4,2.0282]
[1743688027972,1.12039,1785.4,1785.3,3.2078]
[1743688028172,5.019,1785.6,1785.3,3.2078]
[1743688028377,1.1205,1785.3,1785.0,2.0282]
[1743688028569,1.12044,1785.4,1785.3,0.00840735]
[1743688029478,3.62044,1785.4,1785.3,0.00840735]
[1743688029772,5.49194,1785.4,1785.3,0.00840735]
[1743688029978,7.42614,1785.4,1785.3,0.00840735]
[1743688030377,4.92609,1785.4,1785.3,0.00840735]
[1743688030680,3.8057,1785.4,1785.3,0.00840735]
[1743688030876,4.92609,1785.4,1785.3,0.00840735]
[1743688031078,8.8237,1785.4,1785.3,0.00840735]
[1743688031284,9.94409,1785.4,1785.3,0.00840735]
[1743688032376,12.44409,1785.4,1785.3,0.00840735]
[1743688032580,2.80146,1785.1,1784.6,1.9291]
[1743688032776,1.12078,1784.8,1784.6,1.9291]
[1743688032987,1.12078,1784.8,1784.5,3.2078]
[1743688032988,1.1209,1784.6,1784.5,3.2078]
[1743688033180,5.018,1784.6,1784.5,3.2078]
[1743688033385,6.1389,1784.6,1784.5,3.2078]
[1743688033774,1.12096,1784.5,1784.4,40.80840735]
[1743688033985,3.09486,1784.5,1784.4,0.00840735]
[1743688034187,7.64566,1784.5,1784.4,0.00840735]
[1743688034386,7.64566,1784.5,1783.3,1.12168]
[1743688034387,2.80304,1784.1,1783.3,1.12168]
[1743688034686,1.12153,1783.6,1783.4,1.9291]
[1743688034889,1.9739,1783.5,1783.4,1.9291]
[1743688035384,1.12165,1783.4,1783.1,4.32961]
[1743688035682,1.9739,1783.5,1783.1,3.2078]
[1743688035890,0.00840735,1783.6,1783.5,1.12159]
[1743688036181,1.12994735,1783.6,1783.4,1.9609]
[1743688036372,5.02740735,1783.6,1783.4,1.9609]
[1743688036573,5.02740735,1783.6,1783.4,5.1687]
[1743688036773,5.02740735,1783.6,1783.5,1.12159]
[1743688036985,0.00840735,1783.6,1783.5,3.08249]
[1743688037682,0.00840735,1783.6,1783.5,5.58249]
[1743688037873,0.00840735,1783.6,1783.5,7.49579]
[1743688038077,3.9168,1784.2,1783.5,6.3742]
[1743688038078,1.12137,1783.9,1783.5,6.3742]
[1743688038277,8.9368,1784.2,1783.8,3.2078]
[1743688038481,1.12124,1784.1,1783.9,43.93371]
[1743688038687,1.12124,1784.1,1783.9,40.8]
[1743688038688,1.12127,1784.0,1783.9,40.8]
[1743688038878,2.0151,1784.1,1783.9,40.8]
[1743688039079,2.0151,1784.1,1783.9,44.0078]
[1743688039484,3.2078,1784.8,1784.1,1.12121]
[1743688039787,1.12106,1784.4,1783.9,44.0078]
[1743688039981,5.2229,1784.7,1784.0,5.2202]
[1743688039982,1.12111,1784.3,1784.0,5.2202]
[1743688040291,5.019,1784.5,1784.2,4.32889]
[1743688040498,5.019,1784.5,1784.1,3.2078]
[1743688040680,3.13614,1784.4,1784.1,1.12121]
[1743688040980,1.12115,1784.2,1783.9,41.92129]
[1743688041183,1.12127,1784.0,1783.9,40.8]
[1743688041385,7.0217,1784.1,1783.8,3.21620735]
[1743688041587,3.12302,1784.0,1783.8,3.21620735]
[1743688041785,3.12302,1784.0,1783.8,45.98240735]
[1743688042482,1.12134,1783.9,1783.8,40.80840735]
[1743688042677,2.0017,1783.9,1783.8,40.80840735]
[1743688042881,3.12304,1783.9,1783.8,40.80840735]
[1743688043086,5.62304,1783.9,1783.8,0.00840735]
[1743688043288,2.0017,1783.9,1783.8,0.00840735]
[1743688043783,5.02,1784.1,1783.8,0.00840735]
[1743688043987,5.02,1784.1,1783.8,5.18240735]
[1743688044185,5.02,1784.1,1783.9,5.174]
[1743688044386,5.02,1784.1,1783.9,6.29532]
[1743688044582,5.02,1784.1,1784.0,1.12127]
[1743688044784,5.02,1784.1,1784.0,3.04817]
[1743688044983,5.02,1784.1,1784.0,1.9269]
[1743688045383,59.73720735,1784.5,1784.0,1.9269]
[1743688045685,9.75761,1784.4,1783.8,0.00840735]
[1743688045881,1.12123,1784.1,1783.8,1.12979735]
[1743688046077,6.955,1784.0,1783.8,0.00840735]
[1743688046283,8.07632,1784.0,1783.8,0.00840735]
[1743688046483,1.12134,1783.9,1783.8,0.00840735]
[1743688046786,3.05734,1783.9,1783.8,0.00840735]
[1743688047287,1.12159,1783.5,1783.3,3.2078]
[1743688047478,5.019,1783.6,1783.2,1.917]
[1743688047684,1.9221,1783.4,1783.2,1.917]
[1743688047879,1.9221,1783.4,1782.7,7.62206]
[1743688047880,1.9221,1783.4,1782.9,3.2078]
[1743688048080,1.12182,1783.2,1782.9,5.1248]
[1743688048281,5.019,1783.1,1782.6,3.2078]
[1743688048488,3.2078,1783.0,1782.9,0.00840735]
[1743688048785,3.04406,1783.0,1782.9,0.00840735]
[1743688049887,5.019,1783.1,1783.0,1.1219]
[1743688050081,0.00840735,1783.2,1783.0,6.24665]
[1743688050287,0.00840735,1783.2,1783.1,1.12184]
[1743688050584,0.00840735,1783.2,1783.0,1.917]
[1743688050785,0.00840735,1783.2,1783.1,1.12184]
[1743688051385,6.14149,1783.7,1783.5,1.12154]
[1743688051582,8.19272,1783.7,1783.3,3.2078]
[1743688051784,7.0712,1783.7,1783.6,40.8]
[1743688051984,8.19266,1783.7,1783.6,40.8]
[1743688052181,2.80421,1783.4,1782.9,0.00840735]
[1743688052390,1.1219,1783.0,1782.9,0.00840735]
[1743688052590,1.1219,1783.0,1782.9,40.80840735]
[1743688053092,1.12202,1782.9,1782.3,3.2078]
[1743688053393,6.14204,1782.8,1782.6,1.12214]
[1743688053693,6.14204,1782.8,1782.6,40.8]
[1743688053892,2.0052,1782.7,1782.6,42.6693]
[1743688054091,5.02,1782.8,1782.7,1.12209]
[1743688054292,5.02,1782.8,1782.7,2.99139]
[1743688054488,5.02,1782.8,1782.7,6.19919]
[1743688054688,2.0052,1783.0,1782.7,6.19919]
[1743688054689,2.0052,1783.0,1782.8,1.12201]
[1743688054897,3.12716,1783.0,1782.7,6.19913]
[1743688055089,1.12197,1782.9,1782.8,40.8]
[1743688055696,2.0052,1783.0,1782.8,40.8]
[1743688055885,1.12196,1782.9,1782.8,40.8]
[1743688056788,3.04146,1782.9,1782.8,40.8]
[1743688056983,3.04146,1782.9,1782.5,1.13059735]
[1743688056984,1.12205,1782.8,1782.5,3.01389735]
[1743688057186,3.2078,1783.0,1782.6,3.2078]
[1743688057400,1.12192,1783.0,1782.8,1.12201]
[1743688057698,8.06138,1783.1,1782.7,1.8833]
[1743688057897,3.0414,1783.0,1782.8,3.2078]
[1743688058198,1.12196,1782.9,1782.8,3.2078]
[1743688058396,1.12215,1782.6,1782.5,3.21620735]
[1743688058592,1.12215,1782.6,1782.5,0.00840735]
[1743688058987,1.9195,1782.6,1782.5,40.80840735]
[1743688059186,6.14212,1782.7,1782.5,40.80840735]
[1743688059398,5.02,1782.7,1782.6,1.12215]
[1743688059695,5.02,1782.7,1782.6,6.19875]
[1743688059899,5.02,1782.7,1782.6,1.8688]
[1743688060298,5.02,1782.7,1782.6,2.99095]
[1743688060497,7.0352,1783.0,1782.6,4.3688]
[1743688060693,7.0352,1783.0,1782.7,2.99086]
[1743688060892,1.12202,1782.9,1782.7,1.8688]
[1743688061088,3.13722,1782.9,1782.7,1.8688]
[1743688061293,2.0152,1782.9,1782.7,2.99089]
[1743688061496,1.12186,1783.1,1782.7,1.8688]
[1743688061697,1.12186,1783.1,1782.9,1.12194]
[1743688061991,6.14178,1783.2,1783.0,4.3297]
[1743688062195,6.14178,1783.2,1783.1,1.8688]
[1743688062601,5.02,1783.2,1783.1,2.99064]
[1743688063004,0.00840735,1783.3,1783.2,1.12178]
[1743688063293,1.13017735,1783.3,1783.1,1.8688]
[1743688063495,1.12178,1783.2,1783.1,1.8688]
[1743688063890,0.00840735,1783.3,1783.2,1.12178]
[1743688064095,0.00840735,1783.3,1783.2,6.28548]
[1743688064292,0.00840735,1783.3,1783.2,8.78548]
[1743688064491,0.00840735,1783.3,1783.2,6.28548]
[1743688064692,1.13011735,1783.3,1783.2,1.9559]
[1743688064989,0.00840735,1783.3,1782.9,4.32974]
[1743688065196,7.0019,1783.2,1782.9,3.2078]
[1743688065499,1.1219,1783.0,1782.9,3.2078]
[1743688066101,1.1219,1783.0,1782.9,6.34362]
[1743688066302,1.1219,1783.0,1782.9,5.2217]
[1743688066600,7.0019,1783.2,1782.5,45.63083735]
[1743688066601,1.12213,1782.7,1782.6,3.2078]
[1743688066809,5.019,1782.8,1782.6,3.2078]
[1743688066999,3.14259,1782.7,1782.6,3.2078]
[1743688067303,1.12215,1782.6,1782.5,0.00840735]
[1743688067505,5.12115,1782.6,1782.5,0.00840735]
[1743688067702,1.12245,1782.2,1782.0,40.8]
[1743688068006,2.0205,1782.1,1782.0,41.92253]
[1743688068201,2.0205,1782.1,1782.0,43.93643]
[1743688068402,2.0205,1782.1,1782.0,42.8139]
[1743688068607,2.0205,1782.1,1782.0,40.8]
[1743688069298,5.02740735,1782.2,1782.1,1.12247]
[1743688069699,5.02740735,1782.2,1782.1,2.99347]
[1743688069999,5.02740735,1782.2,1782.1,6.20127]
[1743688070199,0.00840735,1782.2,1782.1,6.20127]
[1743688070405,8.2268,1782.8,1782.2,2.80595]
[1743688070602,5.019,1782.8,1782.7,1.12209]
[1743688070810,5.019,1782.8,1782.3,1.871]
[1743688071105,1.12215,1782.7,1782.5,2.99321]
[1743688071299,2.0429,1782.6,1782.5,2.99321]
[1743688071500,0.00840735,1782.7,1782.5,1.871]
[1743688071704,0.00840735,1782.7,1782.6,4.32995]
[1743688072202,1.90220735,1782.7,1782.6,3.2078]
[1743688072405,1.90220735,1782.7,1782.6,4.32995]
[1743688072608,0.00840735,1782.7,1782.6,4.32995]
[1743688073707,2.50840735,1782.7,1782.4,0.00840735]
[1743688074003,1.12222,1782.5,1782.4,0.00840735]
[1743688074502,1.12237,1782.3,1782.0,3.02859]
[1743688074709,5.018,1782.2,1782.1,1.12247]
[1743688074905,2.0439,1782.4,1782.3,1.12234]
[1743688075106,5.018,1782.5,1782.4,1.12228]
[1743688075906,5.018,1782.5,1782.4,4.33008]
[1743688076107,0.00840735,1782.7,1782.6,1.12215]
[1743688076302,0.00840735,1782.7,1782.5,3.03187]
[1743688076513,0.00840735,1782.7,1782.6,1.12215]
[1743688076898,0.00840735,1782.7,1782.6,4.32995]
[1743688077099,1.13049735,1782.7,1782.6,3.2078]
[1743688077303,0.00840735,1782.7,1782.6,4.32995]
[1743688077505,0.00840735,1782.7,1782.6,6.82995]
[1743688077709,0.00840735,1782.7,1782.6,3.2078]
[1743688077710,1.13049735,1782.7,1782.6,3.2078]
[1743688078207,1.13049735,1782.7,1782.6,44.0078]
[1743688078399,1.13049735,1782.7,1782.6,40.8]
[1743688078600,1.12215,1782.6,1782.5,1.9097]
[1743688078798,1.12215,1782.6,1782.3,3.2078]
[1743688078799,1.922,1782.6,1782.3,3.2078]
[1743688079002,1.922,1782.6,1782.4,1.9728]
[1743688079207,3.04418,1782.6,1782.4,3.09505]
[1743688079510,7.93521,1782.6,1782.0,44.0078]
[1743688079812,7.93521,1782.6,1782.1,1.9728]
[1743688080107,1.12247,1782.1,1782.0,40.8]
[1743688080412,1.12253,1782.0,1781.9,1.9728]
[1743688080711,1.12253,1782.0,1781.6,1.12278]
[1743688080712,3.2078,1782.0,1781.6,1.12278]
[1743688080905,3.2078,1782.0,1781.2,2.80745]
[1743688080906,3.2078,1781.8,1781.3,1.12294]
[1743688081106,1.12281,1781.6,1781.3,6.30364]
[1743688081308,5.017,1781.7,1781.4,43.89576]
[1743688081507,6.14816735,1781.7,1781.4,43.89576]
[1743688081914,6.14815735,1781.7,1781.4,42.7729]
[1743688082408,6.14815735,1781.7,1781.0,2.80791]
[1743688082409,1.12302,1781.3,1781.0,1.12312]
[1743688082610,5.018,1781.3,1780.9,4.33097]
[1743688082809,5.018,1781.3,1781.1,1.12309]
[1743688083003,1.12304,1781.2,1781.0,1.9729]
[1743688083212,5.018,1781.3,1781.1,1.1231]
[1743688083407,5.018,1781.3,1781.0,1.9729]
[1743688083709,0.00840735,1781.7,1781.6,1.12278]
[1743688083915,0.00840735,1781.7,1781.5,3.2078]
[1743688084214,0.00840735,1781.7,1781.1,2.80772]
[1743688084215,0.00840735,1781.7,1781.2,5.2195]
[1743688084410,1.12281,1781.6,1781.3,1.12296]
[1743688084712,1.12293,1781.4,1781.2,3.2078]
[1743688084908,0.00840735,1781.7,1781.0,5.2195]
[1743688084909,8.2248,1781.5,1781.0,5.2195]
[1743688085314,5.017,1781.5,1781.0,5.2195]
[1743688085521,1.12294,1781.4,1781.1,1.12306]
[1743688085813,0.00840735,1781.7,1781.6,1.12278]
[1743688086114,0.00840735,1781.7,1781.5,3.2078]
[1743688086414,1.12279,1781.6,1781.4,3.2078]
[1743688086611,0.00840735,1781.7,1781.5,1.9243]
[1743688086912,0.00840735,1781.7,1781.2,2.80759]
[1743688086913,2.81523735,1781.7,1781.1,1.12304]
[1743688087106,2.81523735,1781.7,1781.1,3.04734]
[1743688087306,0.00840735,1781.7,1781.3,3.2078]
[1743688087507,0.00840735,1781.7,1781.2,3.2078]
[1743688087710,3.2078,1781.3,1780.7,1.12333]
[1743688087902,6.14008,1781.2,1780.7,3.2078]
[1743688088102,5.017,1781.1,1780.8,1.9243]
[1743688088306,9.78868,1781.1,1780.5,5.1321]
[1743688088515,2.80792,1781.0,1780.5,5.1321]
[1743688088712,3.2078,1780.8,1780.1,3.2078]
[1743688088909,1.12343,1780.6,1780.4,1.12351]
[1743688089216,1.13183735,1780.6,1780.5,40.8]
[1743688089513,0.00840735,1780.6,1780.1,6.01701]
[1743688089712,1.13182735,1780.6,1780.4,1.12351]
[1743688090014,0.00840735,1780.6,1780.5,4.33128]
[1743688090714,0.00840735,1780.6,1780.5,6.83128]
[1743688091010,7.82414,1781.5,1781.0,1.12312]
[1743688091210,2.80734,1781.4,1781.0,1.12316]
[1743688091511,7.0441,1781.5,1781.0,3.2078]
[1743688091710,7.0441,1781.5,1780.8,1.9045]
[1743688091711,5.017,1781.5,1781.2,3.2078]
[1743688091908,1.12291,1781.4,1781.2,4.33081]
[1743688092213,5.02540735,1781.5,1781.4,1.12291]
[1743688092413,0.00840735,1781.5,1781.4,1.12291]
[1743688092605,1.93900735,1781.5,1781.4,4.33071]
[1743688092812,1.93900735,1781.5,1781.4,40.8]
[1743688093113,3.06185735,1781.5,1781.4,40.8]
[1743688093311,1.12297,1781.3,1781.2,0.00840735]
[1743688093514,5.017,1781.4,1781.2,0.00840735]
[1743688093721,6.9071,1781.4,1781.3,1.12297]
[1743688094013,0.00840735,1781.5,1781.4,1.12291]
[1743688094312,0.00840735,1781.5,1781.4,5.57791]
[1743688094911,0.00840735,1781.5,1781.4,3.07791]
[1743688095104,0.00840735,1781.5,1781.4,1.955]
[1743688095307,0.00840735,1781.5,1781.4,3.07791]
[1743688095508,3.2078,1782.9,1781.4,4.455]
[1743688095714,4.66642,1782.6,1782.1,3.2078]
[1743688096015,1.12248,1782.1,1781.9,3.2078]
[1743688096209,1.12246,1782.2,1782.0,2.99221]
[1743688096405,1.861,1782.3,1782.0,1.8697]
[1743688096609,5.017,1782.4,1782.2,1.12238]
[1743688096816,1.86940735,1782.3,1782.2,2.99208]
[1743688097014,0.00840735,1782.3,1782.2,2.99208]
[1743688098307,7.35e-06,1782.3,1782.2,5.49208]
[1743688099011,7.35e-06,1782.3,1782.2,46.29208]
[1743688100016,7.35e-06,1782.3,1782.2,43.79208]
[1743688100316,7.35e-06,1782.3,1782.2,2.99208]
[1743688100920,7.35e-06,1782.3,1782.2,1.12238]
[1743688101413,7.35e-06,1782.3,1782.2,3.03018]
[1743688101618,7.35e-06,1782.3,1782.2,5.53018]
[1743688101817,7.35e-06,1782.3,1782.2,7.41378]
[1743688102120,7.35e-06,1782.3,1782.2,48.21378]
[1743688104118,7.35e-06,1782.3,1782.2,1.12238]
[1743688104308,1.86930735,1782.3,1782.2,1.12238]
[1743688104806,1.86930735,1782.3,1782.0,2.81471735]
[1743688105011,1.12247,1782.1,1782.0,0.00840735]
[1743688105411,3.00837,1782.1,1782.0,0.00840735]
[1743688105616,5.50837,1782.1,1782.0,0.00840735]
[1743688106210,1.8859,1782.1,1782.0,3.21620735]
[1743688106413,3.00837,1782.1,1782.0,0.00840735]
[1743688106721,5.50837,1782.1,1782.0,0.00840735]
[1743688107217,10.39989,1782.1,1781.6,1.12275]
[1743688107520,10.39989,1782.1,1781.4,2.80722]
[1743688107521,5.0937,1782.1,1781.4,2.80722]
[1743688107722,1.12257,1782.0,1781.8,1.12264]
[1743688107914,2.0111,1781.9,1781.5,5.0697]
[1743688108113,5.013,1781.8,1781.7,1.1227]
[1743688108920,2.0111,1781.9,1781.8,1.12266]
[1743688109114,2.0111,1781.9,1781.8,2.98456]
[1743688109624,5.013,1782.0,1781.9,1.12259]
[1743688109812,2.0111,1782.2,1782.1,1.12247]
[1743688110013,2.0111,1782.2,1782.1,4.33027]
[1743688110418,1.12247,1782.1,1781.9,5.0697]
[1743688110618,2.0111,1782.0,1781.7,40.8]
[1743688110818,1.12266,1781.8,1781.5,1.13123735]
[1743688111126,3.12055,1781.7,1781.5,0.00840735]
[1743688111418,1.9978,1781.7,1781.5,44.01620735]
[1743688111617,3.8353,1782.0,1781.5,44.01620735]
[1743688111816,1.9978,1781.9,1781.8,4.33039]
[1743688112816,1.9978,1781.9,1781.8,45.13039]
[1743688113016,1.9978,1781.9,1781.8,41.92259]
[1743688113211,7.35e-06,1782.3,1781.8,46.5078]
[1743688113514,3.12014735,1782.3,1782.1,1.12243]
[1743688113710,3.12016735,1782.3,1782.1,3.09614]
[1743688114024,1.12241,1782.2,1782.0,3.2078]
[1743688114217,1.9537,1782.1,1781.9,1.12258]
[1743688114518,1.12253,1782.0,1781.9,2.0105]
[1743688114723,1.9537,1782.1,1781.9,2.0105]
[1743688115024,1.9537,1782.1,1782.0,1.12253]
[1743688115210,1.9537,1782.1,1781.8,44.0078]
[1743688115615,7.35e-06,1782.3,1782.2,1.12241]
[1743688115816,1.95370735,1782.3,1782.2,4.33021]
[1743688116219,7.35e-06,1782.3,1782.2,4.33021]
[1743688117923,1.12234735,1782.3,1782.2,3.2078]
[1743688118226,1.12247,1782.1,1782.0,1.12249]
[1743688118424,6.93310735,1782.3,1782.0,6.0141]
[1743688118627,6.93310735,1782.3,1782.1,1.9933]
[1743688118820,6.93310735,1782.3,1782.2,1.12241]
[1743688119428,7.35e-06,1782.3,1782.2,4.33021]
[1743688119930,7.35e-06,1782.3,1782.2,6.83021]
[1743688120331,7.35e-06,1782.3,1782.2,4.33021]
[1743688121623,7.35e-06,1782.3,1782.2,6.83021]
[1743688122332,7.35e-06,1782.3,1782.2,8.72291]
[1743688123229,5.60644,1784.0,1783.4,1.12165]
[1743688123230,1.8832,1783.5,1783.4,1.12165]
[1743688123429,23.79038586,1783.7,1783.6,1.12152]
[1743688123729,24.91188586,1783.7,1783.5,1.12154]
[1743688123927,1.8787,1783.6,1783.5,1.12154]
[1743688124134,1.8787,1783.6,1783.4,45.8757]
[1743688124135,3.00026,1783.6,1783.4,41.92162]
[1743688124318,1.8787,1783.6,1783.4,41.93002735]
[1743688124516,1.12159,1783.5,1783.4,0.00840735]
[1743688124927,3.62159,1783.5,1783.4,0.00840735]
[1743688125226,5.54099,1783.5,1783.4,0.00840735]
[1743688125531,7.41969,1783.5,1783.4,0.00840735]
[1743688126730,3.7981,1783.5,1783.4,0.00840735]
[1743688126927,3.7981,1783.5,1783.4,1.13005735]
[1743688127329,3.7981,1783.5,1783.4,0.00840735]
[1743688127735,3.7981,1783.5,1783.4,1.13005735]
[1743688127922,3.7981,1783.5,1783.4,0.00840735]
[1743688128129,3.7981,1783.5,1783.4,1.13005735]
[1743688128635,3.00029,1783.5,1783.4,0.00840735]
[1743688128936,1.8787,1783.5,1783.4,1.13005735]
[1743688129130,1.8787,1783.5,1783.4,0.00840735]
[1743688129631,1.8787,1783.5,1783.4,1.13005735]
[1743688130238,1.8787,1783.5,1783.4,3.12845735]
[1743688130729,3.00029,1783.5,1783.4,0.00840735]
[1743688131434,5.50029,1783.5,1783.4,0.00840735]
[1743688132229,3.00029,1783.5,1783.4,0.00840735]
[1743688132536,8.00629,1783.5,1783.4,0.00840735]
[1743688132736,6.8847,1783.5,1783.4,1.13005735]
[1743688133036,10.50629,1783.5,1783.4,0.00840735]
[1743688133742,8.00629,1783.5,1783.4,0.00840735]
[1743688134423,1.8787,1783.5,1783.4,1.13005735]
[1743688134627,0.00840735,1783.7,1783.6,1.12152]
[1743688135036,0.00840735,1783.7,1783.6,3.15152]
[1743688136841,0.00840735,1783.7,1783.6,43.95152]
[1743688137339,1.12131,1784.0,1783.6,46.45152]
[1743688137529,1.12131,1784.0,1783.9,1.12132]
[1743688137729,3.2078,1784.6,1783.8,3.2078]
[1743688137929,4.66701722,1786.3,1784.3,3.2078]
[1743688137930,5.005,1784.7,1784.3,3.2078]
[1743688138231,1.12097,1784.5,1784.4,3.13322]
[1743688138436,8.08344,1784.6,1784.4,2.0122]
[1743688138634,8.08344,1784.6,1784.5,1.12096]
[1743688138939,8.0834,1784.6,1784.5,3.2078]
[1743688139144,8.0834,1784.6,1784.5,4.32876]
[1743688139440,8.0834,1784.6,1784.5,5.2187]
[1743688139835,8.0834,1784.6,1784.5,6.33966]
[1743688140044,6.9625,1784.6,1784.5,2.0109]
[1743688140229,1.9575,1784.6,1784.5,3.13186]
[1743688140535,5.01240735,1784.7,1784.5,6.33963]
[1743688140738,5.01240735,1784.7,1784.3,2.81105735]
[1743688140739,1.12102,1784.4,1784.3,3.21620735]
[1743688140936,1.12098,1784.5,1784.3,0.00840735]
[1743688141130,1.9575,1784.4,1784.3,4.33724735]
[1743688141336,3.07852,1784.4,1784.3,0.00840735]
[1743688141634,6.28632,1784.4,1784.3,0.00840735]
[1743688141937,2.80297,1784.2,1783.8,3.2078]
[1743688142134,7.0127,1784.1,1783.8,3.2078]
[1743688142341,8.13394,1784.1,1783.9,1.8773]
[1743688142641,7.0127,1784.1,1784.0,1.12127]
[1743688142839,7.0127,1784.1,1783.9,2.99861]
[1743688143038,1.12131,1784.0,1783.9,0.00840735]
[1743688143247,3.9312,1784.3,1783.9,0.00840735]
[1743688143543,1.12127,1784.0,1783.9,3.00700735]
[1743688143746,6.12427,1784.0,1783.9,0.00840735]
[1743688144039,2.8035,1783.8,1783.1,3.2078]
[1743688144346,3.2078,1783.8,1783.2,0.11215791]
[1743688144537,1.12164,1783.5,1783.3,40.8]
[1743688144841,7.0332,1783.4,1783.2,0.11215791]
[1743688145044,5.003,1783.3,1783.2,1.23391791]
[1743688145245,7.0332,1783.3,1783.2,42.04232526]
[1743688145442,7.0332,1783.3,1783.2,43.93282526]
[1743688145639,7.0332,1783.3,1783.2,42.04234526]
[1743688145839,8.15491,1783.3,1783.2,40.92056526]
[1743688146143,7.0332,1783.3,1783.2,40.92056526]
[1743688146343,8.15491,1783.3,1783.2,40.92056526]
[1743688146543,10.65491,1783.3,1783.2,0.12056526]
[1743688146734,10.65491,1783.3,1782.6,3.2078]
[1743688146735,1.12209,1782.7,1782.4,3.2078]
[1743688146932,3.2078,1783.4,1782.8,1.122]
[1743688146933,3.2078,1783.2,1782.8,1.122]
[1743688147137,2.0302,1783.0,1782.7,3.2078]
[1743688147346,2.0302,1783.0,1782.5,43.8127]
[1743688147546,2.0302,1783.0,1782.5,45.8983]
[1743688147743,2.0302,1783.0,1782.7,3.2078]
[1743688148045,2.0302,1783.0,1782.9,4.32976]
[1743688148241,5.003,1783.1,1782.9,4.32976]
[1743688148242,6.978,1783.1,1782.9,4.32976]
[1743688148547,8.09984,1783.1,1782.7,3.2078]
[1743688148846,6.978,1783.1,1783.0,1.1219]
[1743688149034,5.003,1783.1,1783.0,1.1219]
[1743688149350,5.003,1783.1,1783.0,3.1433]
[1743688149538,5.003,1783.1,1782.9,3.2078]
[1743688149539,1.12192,1783.0,1782.7,4.32987]
[1743688149848,3.09692,1783.0,1782.7,6.35127]
[1743688150042,3.09693,1783.0,1782.7,5.2292]
[1743688150347,1.975,1783.0,1782.8,1.122]
[1743688150546,1.975,1783.0,1782.9,1.9793]
[1743688151141,1.975,1783.0,1782.5,40.8]
[1743688151142,1.975,1783.0,1782.5,44.0078]
[1743688151439,1.12207,1782.8,1782.5,44.0078]
[1743688151644,5.1828,1783.0,1782.5,45.12999]
[1743688151645,7.0005,1782.7,1782.5,45.12999]
[1743688151946,7.0005,1782.7,1782.5,41.92221]
[1743688152147,5.004,1782.7,1782.6,1.12215]
[1743688152345,5.004,1782.7,1782.6,3.10145]
[1743688152944,5.004,1782.7,1782.6,5.60145]
[1743688153143,3.11831,1783.2,1782.6,7.28462]
[1743688153351,0.00840735,1783.6,1783.1,3.2078]
[1743688153549,0.00840735,1783.6,1783.3,3.2078]
[1743688153751,3.21620735,1783.6,1783.1,4.32959]
[1743688154052,8.10411,1783.5,1783.3,1.12171]
[1743688154345,6.9825,1783.5,1783.2,42.8107]
[1743688154548,6.9825,1783.5,1783.2,43.93245]
[1743688154747,8.10413,1783.5,1783.3,1.12171]
[1743688154946,0.00840735,1783.6,1783.3,3.2078]
[1743688155250,1.12159,1783.5,1783.3,3.2078]
[1743688155546,0.00840735,1783.6,1783.3,3.2078]
[1743688155743,0.00840735,1783.6,1783.5,4.32939]
[1743688156646,1.12992735,1783.6,1783.5,3.2078]
[1743688156847,0.00840735,1783.6,1783.5,6.23819]
[1743688157455,10.18915,1784.1,1783.5,8.73819]
[1743688157750,2.0329,1784.0,1783.8,1.12135]
[1743688157951,2.0329,1784.0,1783.6,3.2078]
[1743688158143,2.0329,1784.0,1783.9,1.12134]
[1743688158343,1.12134,1783.9,1783.7,3.03024]
[1743688158651,3.15421,1784.0,1783.8,0.00840735]
[1743688158848,1.12134,1783.9,1783.8,0.00840735]
[1743688159152,2.0329,1783.9,1783.8,0.00840735]
[1743688159354,3.15424,1783.9,1783.8,0.00840735]
[1743688159550,1.12158,1783.6,1783.4,3.2078]
[1743688159753,1.8921,1783.5,1783.4,4.3294]
[1743688159954,1.8921,1783.5,1783.4,3.2078]
[1743688160151,5.003,1783.6,1783.5,1.12159]
[1743688160343,5.003,1783.6,1783.5,2.99799]
[1743688160849,9.3951,1783.6,1782.8,3.2078]
[1743688161050,3.2078,1783.4,1783.0,1.8764]
[1743688161350,3.01385,1783.3,1783.0,2.99828]
[1743688161551,6.12378,1783.2,1783.0,43.79828]
[1743688161751,6.22174,1783.1,1783.0,40.8]
[1743688161944,1.12206,1782.8,1782.6,3.2078]
[1743688162151,8.01619,1782.7,1782.6,3.2078]
[1743688162350,8.01623,1782.7,1782.6,40.8]
[1743688162553,13.72403,1782.7,1782.6,40.8]